[Event "FIDE WCCC Open-12 2024"]
[Site "Montesilvano"]
[Date "2024.11.18"]
[Round "1.25"]
[White "Nicot, Valentin"]
[Black "Miransh Vyas"]
[Result "1-0"]
[ECO "A18"]
[WhiteElo "2078"]
[BlackElo "1705"]
[PlyCount "151"]
[EventDate "2024.11.18"]
[EventType "swiss"]
[EventCountry "ITA"]
[TimeControl "5400+30"]

1. c4 {[%emt 0:00:12]} Nf6 {[%emt 0:00:48]} 2. Nc3 {[%emt 0:00:38]} e6 {[%emt 0:01:36]} 3. e4 {[%emt 0:00:33]} d5 {[%emt 0:08:53]} 4. cxd5 {[%emt 0:06:56]} exd5 {[%emt 0:03:30]} 5. e5 {[%emt 0:12:16]} d4 {[%emt 0:25:10]} 6. exf6 {[%emt 0:02:19]} dxc3 {[%emt 0:01:38]} 7. dxc3 {[%emt 0:11:48]} Qxf6 {[%emt 0:02:34]} 8. Nf3 {[%emt 0:01:17]} Nc6 {[%emt 0:07:50]} 9. Be2 {[%emt 0:03:08]} h6 {[%emt 0:05:28]} 10. Be3 {[%emt 0:02:13]} Bd6 {[%emt 0:05:23]} 11. Qb3 {[%emt 0:08:32]} O-O {[%emt 0:02:53]} 12. O-O {[%emt 0:01:24]} a6 {[%emt 0:09:15]} 13. Qc2 {[%emt 0:05:57]} Bf5 {[%emt 0:00:56]} 14. Bd3 {[%emt 0:00:22]} Bxd3 {[%emt 0:00:39]} 15. Qxd3 {[%emt 0:00:02]} Rad8 {[%emt 0:00:52]} 16. Qc2 {[%emt 0:01:06]} Ne5 {[%emt 0:01:34]} 17. Nxe5 {[%emt 0:00:49]} Qxe5 {[%emt 0:00:08]} 18. g3 {[%emt 0:00:09]} Qd5 {[%emt 0:03:27]} 19. Qd1 {[%emt 0:06:28]} Qc6 {[%emt 0:01:55]} 20. Qb3 {[%emt 0:00:57]} Kh8 {[%emt 0:01:19]} 21. Bd4 {[%emt 0:03:13]} b6 {[%emt 0:02:13]} 22. Rad1 {[%emt 0:01:36]} f5 {[%emt 0:01:33]} 23. Qe6 {[%emt 0:00:28]} Kh7 {[%emt 0:00:47]} 24. Be3 {[%emt 0:04:01]} Rde8 {[%emt 0:00:54]} 25. Qd5 {[%emt 0:00:14]} Qxd5 {[%emt 0:00:49]} 26. Rxd5 {[%emt 0:00:02]} f4 {[%emt 0:01:47]} 27. Bxb6 {[%emt 0:05:56]} Rb8 {[%emt 0:01:43]} 28. Bc5 {[%emt 0:01:09]} Bxc5 {[%emt 0:00:29]} 29. Rxc5 {[%emt 0:00:01]} Rxb2 {[%emt 0:00:41]} 30. a4 {[%emt 0:00:51]} Ra2 {[%emt 0:01:22]} 31. a5 {[%emt 0:00:39]} Rf6 {[%emt 0:01:30]} 32. c4 {[%emt 0:01:19]} Kg6 {[%emt 0:00:43]} 33. g4 {[%emt 0:00:55]} f3 {[%emt 0:01:24]} 34. h3 {[%emt 0:00:54]} Re6 {[%emt 0:01:27]} 35. Kh2 {[%emt 0:00:13]} Re4 {[%emt 0:00:41]} 36. Kg3 {[%emt 0:00:08]} Rc2 {[%emt 0:00:37]} 37. Rc6+ {[%emt 0:00:54]} Kh7 {[%emt 0:00:15]} 38. Rxc7 {[%emt 0:04:51]} Rexc4 {[%emt 0:00:37]} 39. Rxc4 {[%emt 0:00:48]} Rxc4 {[%emt 0:00:21]} 40. Ra1 {[%emt 0:00:13]} g5 {[%emt 0:01:05]} 41. Ra3 {[%emt 0:03:54]} Rf4 {[%emt 0:00:57]} 42. Rxf3 {[%emt 0:00:44]} Ra4 {[%emt 0:00:10]} 43. Rf5 {[%emt 0:00:01]} Ra3+ {[%emt 0:00:21]} 44. Kg2 {[%emt 0:00:07]} Kg6 {[%emt 0:00:17]} 45. Rc5 {[%emt 0:00:07]} Kg7 {[%emt 0:00:12]} 46. Rc7+ {[%emt 0:01:16]} Kg8 {[%emt 0:00:10]} 47. Rc6 {[%emt 0:00:50]} Rxa5 {[%emt 0:00:19]} 48. Rxh6 {[%emt 0:00:05]} Kg7 {[%emt 0:00:12]} 49. Rb6 {[%emt 0:00:06]} Ra4 {[%emt 0:01:18]} 50. Kg3 {[%emt 0:01:13]} Ra3+ {[%emt 0:00:18]} 51. f3 {[%emt 0:00:05]} a5 {[%emt 0:00:05]} 52. Rb5 {[%emt 0:01:43]} Kg6 {[%emt 0:00:11]} 53. Rf5 {[%emt 0:01:42]} a4 {[%emt 0:01:24]} 54. h4 {[%emt 0:00:14]} gxh4+ {[%emt 0:00:09]} 55. Kxh4 {[%emt 0:00:02]} Ra1 {[%emt 0:00:21]} 56. Ra5 {[%emt 0:00:38]} a3 {[%emt 0:01:26]} 57. Ra6+ {[%emt 0:00:06]} Kf7 {[%emt 0:00:10]} 58. Kg5 {[%emt 0:01:07]} a2 {[%emt 0:00:24]} 59. f4 {[%emt 0:00:22]} Ke7 {[%emt 0:00:39]} 60. f5 {[%emt 0:00:36]} Ke8 {[%emt 0:00:48]} 61. Ra7 {[%emt 0:00:16]} Kd8 {[%emt 0:00:35]} 62. f6 {[%emt 0:00:59]} Ke8 {[%emt 0:00:14]} 63. Kg6 {[%emt 0:00:22]} Rg1 {[%emt 0:00:23]} 64. f7+ {[%emt 0:00:06]} Kf8 {[%emt 0:00:19]} 65. Ra8+ {[%emt 0:00:01]} Ke7 {[%emt 0:00:07]} 66. f8=Q+ {[%emt 0:00:04]} Kd7 {[%emt 0:00:03]} 67. Qd8+ {[%emt 0:00:14]} Ke6 {[%emt 0:00:07]} 68. Qb6+ {[%emt 0:00:06]} Ke5 {[%emt 0:00:04]} 69. Qxg1 {[%emt 0:00:06]} a1=Q {[%emt 0:00:05]} 70. Qxa1+ {[%emt 0:00:10]} Ke4 {[%emt 0:00:04]} 71. Qd1 {[%emt 0:00:11]} Kf4 {[%emt 0:00:08]} 72. Qf1+ {[%emt 0:00:22]} Kxg4 {[%emt 0:00:06]} 73. Ra4+ {[%emt 0:00:07]} Kg3 {[%emt 0:00:06]} 74. Qd3+ {[%emt 0:00:04]} Kf2 {[%emt 0:00:07]} 75. Ra2+ {[%emt 0:00:00]} Ke1 {[%emt 0:00:06]} 76. Qb1# {[%emt 0:00:04]} 1-0

[Event "FIDE WCCC Open-12 2024"]
[Site "Montesilvano"]
[Date "2024.11.18"]
[Round "1.26"]
[White "Andreiev, Andrii"]
[Black "Filindash, Nikita"]
[Result "0-1"]
[ECO "B50"]
[WhiteElo "1704"]
[BlackElo "2076"]
[PlyCount "83"]
[EventDate "2024.11.18"]
[EventType "swiss"]
[EventCountry "ITA"]
[TimeControl "5400+30"]

1. e4 {[%emt 0:00:02]} c5 {[%emt 0:00:06]} 2. Nf3 {[%emt 0:00:15]} d6 {[%emt 0:00:03]} 3. c3 {[%emt 0:00:10]} Nf6 {[%emt 0:00:09]} 4. Qc2 {[%emt 0:00:26]} Nc6 {[%emt 0:00:16]} 5. Be2 {[%emt 0:00:36]} Bg4 {[%emt 0:00:28]} 6. d4 {[%emt 0:00:20]} cxd4 {[%emt 0:02:37]} 7. Nxd4 {[%emt 0:00:59]} Bxe2 {[%emt 0:04:37]} 8. Qxe2 {[%emt 0:01:25]} Qc7 {[%emt 0:03:46]} 9. O-O {[%emt 0:02:13]} g6 {[%emt 0:02:52]} 10. f4 {[%emt 0:02:16]} Bg7 {[%emt 0:01:59]} 11. Nd2 {[%emt 0:01:01]} O-O {[%emt 0:00:48]} 12. f5 {[%emt 0:01:10]} a6 {[%emt 0:03:51]} 13. a4 {[%emt 0:01:29]} Nd7 {[%emt 0:01:32]} 14. N2b3 {[%emt 0:00:40]} Nc5 {[%emt 0:00:51]} 15. Rf3 {[%emt 0:01:51]} Nxb3 {[%emt 0:00:23]} 16. Nxb3 {[%emt 0:00:32]} Qb6+ {[%emt 0:00:07]} 17. Nd4 {[%emt 0:00:41]} Bxd4+ {[%emt 0:00:28]} 18. cxd4 {[%emt 0:00:18]} Nxd4 {[%emt 0:00:06]} 19. Qf2 {[%emt 0:01:30]} Nxf3+ {[%emt 0:00:05]} 20. gxf3 {[%emt 0:00:11]} Qxf2+ {[%emt 0:00:07]} 21. Kxf2 {[%emt 0:00:14]} Rac8 {[%emt 0:00:09]} 22. b4 {[%emt 0:01:28]} Rc2+ {[%emt 0:00:05]} 23. Ke3 {[%emt 0:01:28]} Rxh2 {[%emt 0:01:18]} 24. Bd2 {[%emt 0:01:12]} Rc8 {[%emt 0:00:05]} 25. Rg1 {[%emt 1:20:33]} Rc2 {[%emt 0:00:14]} 26. Be1 {[%emt 0:00:00]} Ra2 {[%emt 0:02:12]} 27. a5 {[%emt 0:00:00]} Ra3+ {[%emt 0:01:05]} 28. Kf4 {[%emt 0:00:00]} Ra1 {[%emt 0:00:31]} 29. Ke3 {[%emt 0:00:00]} Rb2 {[%emt 0:00:47]} 30. fxg6 {[%emt 0:00:00]} fxg6 {[%emt 0:03:11]} 31. f4 {[%emt 0:00:00]} Rxb4 {[%emt 0:00:41]} 32. f5 {[%emt 0:00:00]} Rb3+ {[%emt 0:00:07]} 33. Kd2 {[%emt 0:00:00]} Rxa5 {[%emt 0:01:21]} 34. Kc2 {[%emt 0:00:00]} Rab5 {[%emt 0:00:07]} 35. fxg6 {[%emt 0:00:00]} hxg6 {[%emt 0:00:26]} 36. Rxg6+ {[%emt 0:00:00]} Kf7 {[%emt 0:00:04]} 37. Rg1 {[%emt 0:00:00]} Rb2+ {[%emt 0:00:16]} 38. Kd3 {[%emt 0:00:00]} a5 {[%emt 0:00:05]} 39. Rf1+ {[%emt 0:00:00]} Ke6 {[%emt 0:00:06]} 40. Bc3 {[%emt 0:00:00]} R2b3 {[%emt 0:00:06]} 41. Kc4 {[%emt 0:00:00]} a4 {[%emt 0:00:09]} 42. Kd4 {[%emt 0:08:30] Ke5+} 0-1

[Event "FIDE WCCC Open-12 2024"]
[Site "Montesilvano"]
[Date "2024.11.18"]
[Round "1.27"]
[White "Fulgentini, Edoardo"]
[Black "Leht, Karl Samuel"]
[Result "1/2-1/2"]
[ECO "B15"]
[WhiteElo "2075"]
[BlackElo "1701"]
[PlyCount "117"]
[EventDate "2024.11.18"]
[EventType "swiss"]
[EventCountry "ITA"]
[TimeControl "5400+30"]

1. e4 {[%emt 0:00:03]} c6 {[%emt 0:00:09]} 2. d4 {[%emt 0:00:13]} d5 {[%emt 0:00:08]} 3. Nc3 {[%emt 0:00:09]} dxe4 {[%emt 0:00:10]} 4. Nxe4 {[%emt 0:00:04]} Nf6 {[%emt 0:00:08]} 5. Nxf6+ {[%emt 0:00:03]} exf6 {[%emt 0:00:14]} 6. c3 {[%emt 0:00:03]} Bd6 {[%emt 0:00:10]} 7. Bd3 {[%emt 0:00:03]} O-O {[%emt 0:00:37]} 8. Qc2 {[%emt 0:00:02]} h5 {[%emt 0:00:25]} 9. Ne2 {[%emt 0:00:21]} Re8 {[%emt 0:01:40]} 10. O-O {[%emt 0:00:07]} Qc7 {[%emt 0:00:09]} 11. h3 {[%emt 0:07:26]} Nd7 {[%emt 0:05:24]} 12. Ng3 {[%emt 0:06:07]} Bxg3 {[%emt 0:10:07]} 13. fxg3 {[%emt 0:00:05]} c5 {[%emt 0:00:29]} 14. Bf4 {[%emt 0:05:43]} Qd8 {[%emt 0:16:44]} 15. Rae1 {[%emt 0:02:32]} Rxe1 {[%emt 0:00:50]} 16. Rxe1 {[%emt 0:01:13]} cxd4 {[%emt 0:00:06]} 17. Bc7 {[%emt 0:08:10]} Qf8 {[%emt 0:01:49]} 18. cxd4 {[%emt 0:01:08]} g6 {[%emt 0:04:44]} 19. Bxg6 {[%emt 0:04:36]} fxg6 {[%emt 0:00:43]} 20. Qxg6+ {[%emt 0:00:46]} Qg7 {[%emt 0:00:36]} 21. Qe8+ {[%emt 0:00:25]} Nf8 {[%emt 0:01:15]} 22. Re7 {[%emt 0:00:09]} Qg6 {[%emt 0:28:48]} 23. Qxg6+ {[%emt 0:00:09]} Nxg6 {[%emt 0:00:19]} 24. Re8+ {[%emt 0:02:56]} Kf7 {[%emt 0:00:22]} 25. Rd8 {[%emt 0:01:59]} b6 {[%emt 0:05:02]} 26. d5 {[%emt 0:01:36]} Nf8 {[%emt 0:02:20]} 27. Bd6 {[%emt 0:03:58]} Bb7 {[%emt 0:00:36]} 28. Rxa8 {[%emt 0:04:27]} Bxa8 {[%emt 0:00:08]} 29. Bb8 {[%emt 0:01:55]} Bxd5 {[%emt 0:00:43]} 30. Bxa7 {[%emt 0:00:14]} Nd7 {[%emt 0:00:15]} 31. a4 {[%emt 0:00:02]} Ke6 {[%emt 0:00:50]} 32. b4 {[%emt 0:00:27]} Ke5 {[%emt 0:03:43]} 33. a5 {[%emt 0:00:53]} bxa5 {[%emt 0:01:04]} 34. bxa5 {[%emt 0:00:16]} Ke4 {[%emt 0:02:30]} 35. Kh2 {[%emt 0:03:58]} Ne5 {[%emt 0:01:20]} 36. Bb8 {[%emt 0:02:25]} Ke3 {[%emt 0:04:25]} 37. Kg1 {[%emt 0:09:04]} Ke2 {[%emt 0:02:21]} 38. Bc7 {[%emt 0:01:55]} Bb7 {[%emt 0:01:26]} 39. Bb6 {[%emt 0:08:19]} Nc4 {[%emt 0:00:46]} 40. Bd4 {[%emt 0:01:21]} f5 {[%emt 0:00:18]} 41. Kh2 {[%emt 0:02:54]} Nxa5 {[%emt 0:01:01]} 42. Kg1 {[%emt 0:02:35]} Nc4 {[%emt 0:00:31]} 43. Ba7 {[%emt 0:12:08]} Ne3 {[%emt 0:00:35]} 44. Bb8 {[%emt 0:00:44]} Bxg2 {[%emt 0:01:43]} 45. Kh2 {[%emt 0:01:13]} Kf3 {[%emt 0:01:38]} 46. h4 {[%emt 0:00:36]} Nf1+ {[%emt 0:01:42]} 47. Kg1 {[%emt 0:00:02]} Bh3 {[%emt 0:00:22]} 48. Bc7 {[%emt 0:00:19]} Nd2 {[%emt 0:01:13]} 49. Bb8 {[%emt 0:00:10]} Ne4 {[%emt 0:00:36]} 50. Bc7 {[%emt 0:00:06]} Kg4 {[%emt 0:00:34]} 51. Kh2 {[%emt 0:00:24]} Nd2 {[%emt 0:00:15]} 52. Kg1 {[%emt 0:00:25]} Nf3+ {[%emt 0:00:12]} 53. Kf2 {[%emt 0:00:09]} Nxh4 {[%emt 0:01:11]} 54. gxh4 {[%emt 0:00:03]} Kxh4 {[%emt 0:00:19]} 55. Bd6 {[%emt 0:02:42]} Kg4 {[%emt 0:00:27]} 56. Bc7 {[%emt 0:00:27]} f4 {[%emt 0:00:45]} 57. Bd8 {[%emt 0:00:17]} f3 {[%emt 0:00:27]} 58. Bc7 {[%emt 0:00:16]} Bg2 {[%emt 0:00:26]} 59. Bb8 {[%emt 0:00:17]} 1/2-1/2

[Event "FIDE WCCC Open-12 2024"]
[Site "Montesilvano"]
[Date "2024.11.18"]
[Round "1.28"]
[White "Su, Jayden Chenxuan"]
[Black "Obidjonov, Oriyat"]
[Result "0-1"]
[ECO "E32"]
[WhiteElo "1700"]
[BlackElo "2074"]
[PlyCount "96"]
[EventDate "2024.11.18"]
[EventType "swiss"]
[EventCountry "ITA"]
[TimeControl "5400+30"]

1. d4 {[%emt 0:00:04]} Nf6 {[%emt 0:00:04]} 2. c4 {[%emt 0:00:12]} e6 {[%emt 0:00:06]} 3. Nc3 {[%emt 0:00:11]} Bb4 {[%emt 0:00:03]} 4. Qc2 {[%emt 0:00:19]} c5 {[%emt 0:00:05]} 5. dxc5 {[%emt 0:01:16]} Bxc5 {[%emt 0:00:53]} 6. Nf3 {[%emt 0:00:40]} O-O {[%emt 0:00:20]} 7. Bg5 {[%emt 0:01:37]} h6 {[%emt 0:05:01]} 8. Bh4 {[%emt 0:01:28]} d6 {[%emt 0:06:48]} 9. e3 {[%emt 0:00:53]} Bd7 {[%emt 0:07:53]} 10. Be2 {[%emt 0:03:34]} Bc6 {[%emt 0:01:29]} 11. O-O {[%emt 0:03:40]} Nbd7 {[%emt 0:00:59]} 12. Rfd1 {[%emt 0:01:06]} Rc8 {[%emt 0:02:55]} 13. a3 {[%emt 0:02:03]} a5 {[%emt 0:00:52]} 14. Rab1 {[%emt 0:00:57]} Qe7 {[%emt 0:09:08]} 15. Nd2 {[%emt 0:11:16]} Bb6 {[%emt 0:04:45]} 16. b4 {[%emt 0:08:52]} axb4 {[%emt 0:02:03]} 17. axb4 {[%emt 0:00:15]} Ne5 {[%emt 0:01:59]} 18. h3 {[%emt 0:22:05]} Rfd8 {[%emt 0:02:40]} 19. Rbc1 {[%emt 0:05:13]} Ng6 {[%emt 0:05:55]} 20. Bg3 {[%emt 0:00:34]} d5 {[%emt 0:03:41]} 21. c5 {[%emt 0:00:33]} Bc7 {[%emt 0:00:14]} 22. Bxc7 {[%emt 0:01:42]} Rxc7 {[%emt 0:00:21]} 23. Nf3 {[%emt 0:01:14]} e5 {[%emt 0:02:19]} 24. Bb5 {[%emt 0:04:09]} Rcd7 {[%emt 0:03:58]} 25. Bxc6 {[%emt 0:03:37]} bxc6 {[%emt 0:00:41]} 26. Ne2 {[%emt 0:01:33]} Rb8 {[%emt 0:01:24]} 27. Qa4 {[%emt 0:01:57]} Qe6 {[%emt 0:00:39]} 28. Rb1 {[%emt 0:01:17]} Rdb7 {[%emt 0:00:42]} 29. Kf1 {[%emt 0:01:46]} Ne4 {[%emt 0:00:15]} 30. Rdc1 {[%emt 0:01:32]} Qf6 {[%emt 0:00:23]} 31. Nc3 {[%emt 0:01:11]} Nxf2 {[%emt 0:06:39]} 32. Kxf2 {[%emt 0:01:12]} e4 {[%emt 0:00:18]} 33. b5 {[%emt 0:00:50]} exf3 {[%emt 0:00:13]} 34. gxf3 {[%emt 0:00:34]} Ne5 {[%emt 0:01:23]} 35. Qd1 {[%emt 0:00:34]} Qf5 {[%emt 0:01:01]} 36. e4 {[%emt 0:01:06]} dxe4 {[%emt 0:00:18]} 37. Nxe4 {[%emt 0:00:10]} Rxb5 {[%emt 0:00:20]} 38. Rxb5 {[%emt 0:00:48]} Rxb5 {[%emt 0:00:04]} 39. Rc3 {[%emt 0:03:10]} Qxh3 {[%emt 0:00:32]} 40. Qg1 {[%emt 0:01:01]} Rb2+ {[%emt 0:00:05]} 41. Ke3 {[%emt 0:00:53]} Qxf3+ {[%emt 0:00:23]} 42. Kd4 {[%emt 0:00:07]} Rb4+ {[%emt 0:00:06]} 43. Kxe5 {[%emt 0:00:24]} Qxe4+ {[%emt 0:00:24]} 44. Kd6 {[%emt 0:00:17]} Qe6+ {[%emt 0:00:08]} 45. Kc7 {[%emt 0:00:03]} Qe7+ {[%emt 0:00:08]} 46. Kxc6 {[%emt 0:00:18]} Qf6+ {[%emt 0:00:24]} 47. Kd7 {[%emt 0:00:52]} Rb7+ {[%emt 0:00:10]} 48. Ke8 {[%emt 0:00:10]} Qe7# {[%emt 0:00:06]} 0-1

[Event "FIDE WCCC Open-12 2024"]
[Site "Montesilvano"]
[Date "2024.11.18"]
[Round "1.29"]
[White "Karthi, Jashith"]
[Black "Isakov, Amin"]
[Result "1-0"]
[ECO "D37"]
[WhiteElo "2073"]
[BlackElo "1698"]
[PlyCount "61"]
[EventDate "2024.11.18"]
[EventType "swiss"]
[EventCountry "ITA"]
[TimeControl "5400+30"]

1. d4 {[%emt 0:00:03]} Nf6 {[%emt 0:00:12]} 2. c4 {[%emt 0:00:08]} e6 {[%emt 0:00:17]} 3. Nf3 {[%emt 0:00:07]} d5 {[%emt 0:00:10]} 4. Nc3 {[%emt 0:00:07]} Be7 {[%emt 0:00:55]} 5. Bf4 {[%emt 0:00:35]} O-O {[%emt 0:01:20]} 6. e3 {[%emt 0:00:22]} dxc4 {[%emt 0:00:44]} 7. Bxc4 {[%emt 0:00:45]} a6 {[%emt 0:00:09]} 8. a4 {[%emt 0:03:17]} Nbd7 {[%emt 0:01:03]} 9. h3 {[%emt 0:01:24]} c5 {[%emt 0:00:43]} 10. Bh2 {[%emt 0:06:51]} cxd4 {[%emt 0:17:08]} 11. Nxd4 {[%emt 0:00:53]} Bc5 {[%emt 0:05:49]} 12. O-O {[%emt 0:06:02]} Qe7 {[%emt 0:09:00]} 13. a5 {[%emt 0:07:21]} Rd8 {[%emt 0:05:51]} 14. Bc7 {[%emt 0:00:42]} Re8 {[%emt 0:00:12]} 15. Na4 {[%emt 0:07:49]} Nf8 {[%emt 0:03:29]} 16. Nb6 {[%emt 0:14:17]} Ra7 {[%emt 0:12:51]} 17. Bb8 {[%emt 0:03:28]} Bxb6 {[%emt 0:00:07]} 18. axb6 {[%emt 0:00:05]} Ra8 {[%emt 0:00:05]} 19. Bc7 {[%emt 0:00:21]} Bd7 {[%emt 0:03:56]} 20. Qf3 {[%emt 0:03:07]} e5 {[%emt 0:21:33]} 21. Nf5 {[%emt 0:00:57]} Bxf5 {[%emt 0:00:43]} 22. Qxf5 {[%emt 0:00:08]} N8d7 {[%emt 0:00:52]} 23. Rfd1 {[%emt 0:10:56]} Nxb6 {[%emt 0:03:38]} 24. Bxb6 {[%emt 0:00:22]} Qb4 {[%emt 0:00:08]} 25. Bxf7+ {[%emt 0:00:40]} Kxf7 {[%emt 0:00:06]} 26. Rd7+ {[%emt 0:02:07]} Re7 {[%emt 0:01:31]} 27. Rxe7+ {[%emt 0:00:20]} Qxe7 {[%emt 0:00:11]} 28. Rc1 {[%emt 0:00:25]} Qe8 {[%emt 0:08:16]} 29. Rc7+ {[%emt 0:00:46]} Kg8 {[%emt 0:00:21]} 30. Qg5 {[%emt 0:01:48]} Nh5 {[%emt 0:01:04]} 31. g4 {[%emt 0:04:48]} 1-0

[Event "FIDE WCCC Open-12 2024"]
[Site "Montesilvano"]
[Date "2024.11.18"]
[Round "1.30"]
[White "Chia, Yu Zhe Ashton"]
[Black "Baturin-Vinogradov, Miroslav"]
[Result "0-1"]
[ECO "C85"]
[WhiteElo "2252"]
[BlackElo "2048"]
[PlyCount "92"]
[EventDate "2024.11.18"]
[EventType "swiss"]
[EventCountry "ITA"]
[TimeControl "5400+30"]

1. e4 {[%emt 0:00:03]} e5 {[%emt 0:00:15]} 2. Nf3 {[%emt 0:00:04]} Nc6 {[%emt 0:00:16]} 3. Bb5 {[%emt 0:00:03]} a6 {[%emt 0:00:15]} 4. Ba4 {[%emt 0:00:02]} Nf6 {[%emt 0:00:22]} 5. O-O {[%emt 0:00:09]} Be7 {[%emt 0:00:14]} 6. Bxc6 {[%emt 1:33:09]} dxc6 {[%emt 0:00:23]} 7. Re1 {[%emt 0:00:00]} Nd7 {[%emt 0:00:45]} 8. Nc3 {[%emt 0:00:00]} O-O {[%emt 0:01:13]} 9. b3 {[%emt 0:00:00]} Re8 {[%emt 0:02:44]} 10. Bb2 {[%emt 0:00:00]} c5 {[%emt 0:03:04]} 11. Nd5 {[%emt 0:00:00]} Bf8 {[%emt 0:01:08]} 12. c3 {[%emt 0:00:00]} c6 {[%emt 0:03:48]} 13. Ne3 {[%emt 0:00:00]} f6 {[%emt 0:03:36]} 14. Qc2 {[%emt 0:00:00]} Qe7 {[%emt 0:04:22]} 15. d4 {[%emt 0:00:00]} exd4 {[%emt 0:01:44]} 16. Nf5 {[%emt 0:00:00]} Qf7 {[%emt 0:00:47]} 17. cxd4 {[%emt 0:00:00]} g6 {[%emt 0:02:55]} 18. Ne3 {[%emt 0:00:00]} cxd4 {[%emt 0:02:07]} 19. Bxd4 {[%emt 0:00:00]} Qe6 {[%emt 0:15:46]} 20. Nc4 {[%emt 0:00:00]} c5 {[%emt 0:03:31]} 21. Bb2 {[%emt 0:00:00]} b5 {[%emt 0:02:22]} 22. Ncd2 {[%emt 0:00:00]} Bg7 {[%emt 0:06:20]} 23. b4 {[%emt 0:00:00]} cxb4 {[%emt 0:06:58]} 24. Nd4 {[%emt 0:00:00]} Qf7 {[%emt 0:02:01]} 25. N2b3 {[%emt 0:00:00]} Bb7 {[%emt 0:03:51]} 26. Qc7 {[%emt 0:00:00]} Bxe4 {[%emt 0:05:32]} 27. Rac1 {[%emt 0:00:00]} f5 {[%emt 0:04:20]} 28. f3 {[%emt 0:00:00]} Bd5 {[%emt 0:02:45]} 29. Qd6 {[%emt 0:00:00]} Bf8 {[%emt 0:01:31]} 30. Rxe8 {[%emt 0:00:00]} Rxe8 {[%emt 0:00:15]} 31. Qxa6 {[%emt 0:00:00]} Bc4 {[%emt 0:05:46]} 32. f4 {[%emt 0:00:00]} Bg7 {[%emt 0:04:36]} 33. Qd6 {[%emt 0:00:00]} Nf6 {[%emt 0:04:57]} 34. Nd2 {[%emt 0:00:26]} Ne4 {[%emt 0:01:45]} 35. Qxb4 {[%emt 0:02:42]} Nxd2 {[%emt 0:00:39]} 36. Qxd2 {[%emt 0:00:02]} Qd5 {[%emt 0:00:27]} 37. Qf2 {[%emt 0:04:46]} Re4 {[%emt 0:00:58]} 38. Nf3 {[%emt 0:03:58]} Re2 {[%emt 0:00:38]} 39. Qxe2 {[%emt 0:00:14]} Bxe2 {[%emt 0:00:14]} 40. Rc8+ {[%emt 0:00:04]} Bf8 {[%emt 0:00:21]} 41. Ba3 {[%emt 0:00:24]} Bxf3 {[%emt 0:00:36]} 42. Rxf8+ {[%emt 0:01:55]} Kg7 {[%emt 0:00:01]} 43. gxf3 {[%emt 0:00:02]} Qxf3 {[%emt 0:00:46]} 44. Bb4 {[%emt 0:01:27]} Qg4+ {[%emt 0:00:31]} 45. Kh1 {[%emt 0:00:14]} Qxf4 {[%emt 0:00:15]} 46. a3 {[%emt 0:00:35]} Qf1# {[%emt 0:00:07]} 0-1

[Event "FIDE WCCC Open-12 2024"]
[Site "Montesilvano"]
[Date "2024.11.18"]
[Round "1.31"]
[White "Bulgak, Damir"]
[Black "Teo, Hong Kai Javier"]
[Result "1-0"]
[ECO "C05"]
[WhiteElo "2044"]
[BlackElo "1675"]
[PlyCount "101"]
[EventDate "2024.11.18"]
[EventType "swiss"]
[EventCountry "ITA"]
[TimeControl "5400+30"]

1. e4 {[%emt 0:00:11]} e6 {[%emt 0:00:31]} 2. d4 {[%emt 0:00:17]} d5 {[%emt 0:01:18]} 3. Nd2 {[%emt 0:01:56]} Nf6 {[%emt 0:02:41]} 4. e5 {[%emt 0:00:19]} Nfd7 {[%emt 0:01:10]} 5. c3 {[%emt 1:30:17]} c5 {[%emt 0:01:20]} 6. f4 {[%emt 0:00:00]} Nc6 {[%emt 0:01:36]} 7. Ndf3 {[%emt 0:00:00]} Qb6 {[%emt 0:02:18]} 8. Ne2 {[%emt 0:00:00]} cxd4 {[%emt 0:02:47]} 9. cxd4 {[%emt 0:00:00]} Bb4+ {[%emt 0:00:17]} 10. Kf2 {[%emt 0:00:00]} f6 {[%emt 0:08:53]} 11. Be3 {[%emt 0:00:00]} O-O {[%emt 0:09:15]} 12. Qc2 {[%emt 0:00:00]} fxe5 {[%emt 0:09:27]} 13. fxe5 {[%emt 0:00:00]} Qd8 {[%emt 0:55:27]} 14. h4 {[%emt 0:00:00]} Be7 {[%emt 0:00:00]} 15. Nf4 {[%emt 0:00:00]} Qb6 {[%emt 0:00:00]} 16. Rd1 {[%emt 0:00:00]} Rf7 {[%emt 0:00:00]} 17. g3 {[%emt 0:00:00]} Nf8 {[%emt 0:00:00]} 18. a3 {[%emt 0:00:00]} Bd7 {[%emt 0:00:00]} 19. Bd3 {[%emt 0:00:00]} Rc8 {[%emt 0:00:00]} 20. Qe2 {[%emt 0:00:00]} Na5 {[%emt 0:00:00]} 21. Kg2 {[%emt 0:00:00]} Nc4 {[%emt 0:00:00]} 22. Bc1 {[%emt 0:00:00]} Ba4 {[%emt 0:00:00]} 23. Rdf1 {[%emt 0:00:00]} Qa5 {[%emt 0:00:00]} 24. g4 {[%emt 0:00:00]} b5 {[%emt 0:00:00]} 25. g5 {[%emt 0:10:00]} Nxa3 {[%emt 0:00:00]} 26. Bd2 {[%emt 0:00:00]} Bb4 {[%emt 0:00:00]} 27. bxa3 {[%emt 0:00:00]} Bxd2 {[%emt 0:00:00]} 28. Nxd2 {[%emt 0:00:00]} Bc2 {[%emt 0:00:00]} 29. Rh3 {[%emt 0:00:00]} Bxd3 {[%emt 0:00:02]} 30. Rxd3 {[%emt 0:00:00]} Rc2 {[%emt 0:02:04]} 31. Kg3 {[%emt 0:00:00]} b4 {[%emt 0:02:11]} 32. axb4 {[%emt 0:00:00]} Qxb4 {[%emt 0:00:15]} 33. Qd1 {[%emt 0:00:00]} Rfc7 {[%emt 0:01:14]} 34. Nb3 {[%emt 0:00:00]} R7c3 {[%emt 0:00:51]} 35. Rxc3 {[%emt 0:00:00]} Rxc3+ {[%emt 0:04:23]} 36. Rf3 {[%emt 0:00:00]} a5 {[%emt 0:00:00]} 37. Nc5 {[%emt 0:06:00]} Rxf3+ {[%emt 0:00:00]} 38. Kxf3 {[%emt 0:00:00]} Qc3+ {[%emt 0:00:00]} 39. Kg4 {[%emt 0:00:00]} Qb2 {[%emt 0:00:21]} 40. h5 {[%emt 0:00:00]} g6 {[%emt 0:00:28]} 41. h6 {[%emt 0:00:00]} Qb8 {[%emt 0:00:41]} 42. Qc2 {[%emt 0:00:00]} Qc7 {[%emt 0:00:55]} 43. Qb1 {[%emt 0:00:00]} Qf7 {[%emt 0:01:04]} 44. Kg3 {[%emt 0:00:00]} Qe7 {[%emt 0:00:17]} 45. Kh4 {[%emt 0:00:00]} Qf7 {[%emt 0:00:14]} 46. Kg4 {[%emt 0:00:00]} Kh8 {[%emt 0:00:15]} 47. Qb8 {[%emt 0:00:00]} Qf5+ {[%emt 0:00:21]} 48. Kf3 {[%emt 0:00:00]} a4 {[%emt 0:00:59]} 49. Nd7 {[%emt 0:00:00]} Kg8 {[%emt 0:00:08]} 50. Nf6+ {[%emt 0:00:00]} Kf7 {[%emt 0:00:10]} 51. Qe8# {[%emt 0:07:00]} 1-0